bitfinex/quotes_BTCUSD_20211001
["timestamp","ask_amount","ask_price","bid_price","bid_amount"]
[1633057944248,0.27998758,43496.0,43492.0,0.24703634]
[1633057945254,0.27998758,43496.0,43492.0,0.28203634]
[1633057945653,0.27998758,43496.0,43492.0,0.62696534]
[1633057945851,0.27998758,43496.0,43492.0,0.28203634]
[1633057946256,0.27998758,43496.0,43492.0,0.035]
[1633057946257,0.2214904,43495.0,43492.0,0.035]
[1633057946457,0.2214904,43495.0,43487.0,0.0231]
[1633057946855,0.27998758,43496.0,43488.0,0.04162156]
[1633057947054,0.2299809,43491.0,43488.0,0.04162156]
[1633057947255,0.2299809,43491.0,43489.0,0.23320706]
[1633057947453,0.2799809,43491.0,43490.0,0.0442504]
[1633057948454,0.2799809,43491.0,43487.0,0.0231]
[1633057949256,0.2799809,43491.0,43488.0,0.04047918]
[1633057949453,0.38767686,43491.0,43488.0,0.04047918]
[1633057949654,0.38767686,43491.0,43488.0,0.17823157]
[1633057950053,0.2799809,43491.0,43489.0,0.03976467]
[1633057950654,0.2799809,43491.0,43488.0,0.17823157]
[1633057951262,0.2799809,43491.0,43488.0,0.21523157]
[1633057952457,0.2799809,43491.0,43488.0,0.17823157]
[1633057953255,0.2799809,43491.0,43488.0,0.21623157]
[1633057954456,0.2799809,43491.0,43488.0,0.17823157]
[1633057955257,0.2799809,43491.0,43488.0,0.21523157]
[1633057957260,0.2799809,43491.0,43488.0,0.21123157]
[1633057957458,0.345007,43490.0,43488.0,0.21123157]
[1633057958458,0.345007,43490.0,43488.0,0.17823157]
[1633057959259,0.345007,43490.0,43488.0,0.20923157]
[1633057960461,0.345007,43490.0,43488.0,0.17823157]
[1633057960660,0.2799809,43491.0,43488.0,0.17823157]
[1633057960863,0.3799809,43491.0,43488.0,0.17823157]
[1633057961262,0.2799809,43491.0,43488.0,0.21023157]
[1633057963064,0.2799809,43491.0,43488.0,0.17823157]
[1633057963265,0.2799809,43491.0,43488.0,0.21223157]
[1633057964664,0.2799809,43491.0,43488.0,0.17823157]
[1633057965266,0.2799809,43491.0,43488.0,0.21323157]
[1633057966275,0.2799809,43491.0,43488.0,0.55819657]
[1633057966468,0.2799809,43491.0,43488.0,0.17823157]
[1633057967270,0.2799809,43491.0,43488.0,0.21423157]
[1633057968469,0.2799809,43491.0,43488.0,0.17823157]
[1633057969273,0.2799809,43491.0,43488.0,0.21123157]
[1633057970668,0.2799809,43491.0,43488.0,0.17823157]
[1633057971273,0.2799809,43491.0,43488.0,0.21123157]
[1633057972470,0.2799809,43491.0,43488.0,0.17823157]
[1633057972672,0.2799809,43491.0,43487.0,0.0231]
[1633057972871,0.2799809,43491.0,43488.0,0.04244105]
[1633057974075,0.2299809,43491.0,43489.0,1.00688344]
[1633057974273,0.06653032,43499.0,43490.0,0.31239262]
[1633057974473,0.06652814,43501.0,43495.0,0.00122201]
[1633057974673,0.06652814,43501.0,43496.0,0.04569414]
[1633057974874,0.29647336,43503.0,43497.0,0.229876]
[1633057975075,0.29647336,43503.0,43497.0,0.4175193]
[1633057975273,0.22996579,43503.0,43497.0,0.4175193]
[1633057975472,0.05,43502.0,43498.0,0.04131135]
[1633057977272,0.05,43502.0,43498.0,0.06131135]
[1633057977535,0.05,43502.0,43499.0,0.04298432]
[1633057978874,0.05,43502.0,43499.0,0.04369864]
[1633057979273,0.05,43502.0,43499.0,0.06069864]
[1633057979474,0.05,43502.0,43500.0,0.04458044]
[1633057979879,0.05,43502.0,43500.0,0.38946344]
[1633057980075,0.13872943,43504.0,43501.0,0.04468542]
[1633057980277,0.13872943,43504.0,43501.0,0.04591276]
[1633057980533,0.08872943,43504.0,43501.0,0.00122734]
[1633057980677,0.08872943,43504.0,43502.0,0.04338091]
[1633057981281,0.08872943,43504.0,43502.0,0.39425091]
[1633057981480,0.08872943,43504.0,43502.0,0.006]
[1633057981684,0.229729,43503.0,43502.0,0.006]
[1633057981881,0.23748651,43503.0,43502.0,0.006]
[1633057982082,0.28748651,43503.0,43502.0,0.006]
[1633057982484,0.38748651,43503.0,43502.0,0.006]
[1633057982685,0.38748651,43503.0,43493.0,0.25448283]
[1633057982886,0.19725699,43500.0,43493.0,0.25448283]
[1633057983084,0.15775751,43503.0,43494.0,0.04105766]
[1633057983285,0.1,43502.0,43494.0,0.04105766]
[1633057983587,0.23946397,43490.0,43482.0,0.06546044]
[1633057983794,0.23946397,43490.0,43479.0,0.11550603]
[1633057983795,0.23727022,43489.0,43479.0,0.11550603]
[1633057983986,0.23727022,43489.0,43479.0,0.05]
[1633057983987,0.01628939,43484.0,43479.0,0.05]
[1633057984588,0.10863917,43480.0,43479.0,0.05]
[1633057984790,0.52261858,43480.0,43479.0,0.05]
[1633057984987,0.4238494,43480.0,43479.0,0.05]
[1633057985387,0.4588494,43480.0,43479.0,0.064]
[1633057985990,0.44897941,43480.0,43479.0,0.08066501]
[1633057986192,0.44897941,43480.0,43479.0,0.064]
[1633057986587,0.41397941,43480.0,43479.0,0.05]
[1633057987388,0.44797941,43480.0,43479.0,0.063]
[1633057987987,0.19468,43480.0,43479.0,0.063]
[1633057988186,0.084,43480.0,43479.0,0.063]
[1633057988386,0.2693335,43480.0,43479.0,0.063]
[1633057988588,0.2353335,43480.0,43479.0,0.05]
[1633057989389,0.2643335,43480.0,43479.0,0.066]
[1633057990589,0.2353335,43480.0,43479.0,0.05]
[1633057991392,0.2703335,43480.0,43479.0,0.062]
[1633057992194,0.25653453,43480.0,43479.0,0.062]
[1633057992650,0.28006256,43481.0,43479.0,0.05]
[1633057992857,0.28006256,43481.0,43480.0,0.01654929]
[1633057993054,0.51885414,43481.0,43479.0,0.05]
[1633057993254,0.23841035,43480.0,43479.0,0.05]
[1633057994251,0.58351935,43480.0,43479.0,0.06633862]
[1633057995056,0.58351935,43480.0,43479.0,0.05]
[1633057995451,0.61851935,43480.0,43479.0,0.05]
[1633057996055,0.27341035,43480.0,43479.0,0.05]
[1633057996653,0.23841035,43480.0,43479.0,0.05]
[1633057997453,0.27041035,43480.0,43479.0,0.05]
[1633057999056,0.23841035,43480.0,43479.0,0.05]
[1633057999258,0.28159236,43481.0,43479.0,0.05]
[1633057999458,0.032,43480.0,43479.0,0.05]
[1633057999656,0.25706601,43480.0,43479.0,0.05]
[1633058000257,0.25706601,43480.0,43479.0,2.51511741]
[1633058000258,0.032,43480.0,43479.0,2.51511741]
[1633058000456,0.032,43480.0,43479.0,0.05]
[1633058000658,0.38159236,43481.0,43479.0,0.05]
[1633058001059,0.28159236,43481.0,43480.0,0.01158445]
[1633058001257,0.28159236,43481.0,43480.0,0.01826171]
[1633058001457,0.31659236,43481.0,43480.0,0.01826171]
[1633058001859,0.41659236,43481.0,43480.0,0.01826171]
[1633058002260,0.41659236,43481.0,43479.0,0.05]
[1633058002460,0.31659236,43481.0,43479.0,0.05]
[1633058002861,0.28159236,43481.0,43479.0,0.05]
[1633058003458,0.31459236,43481.0,43479.0,0.065]
[1633058004662,0.31459236,43481.0,43479.0,0.05]
[1633058004862,0.28159236,43481.0,43479.0,0.05]
[1633058005469,0.28159236,43481.0,43479.0,0.065]
[1633058005470,0.23659452,43480.0,43479.0,0.065]
[1633058005667,0.46632352,43480.0,43479.0,0.065]
[1633058005865,0.56632352,43480.0,43479.0,0.065]
[1633058006664,0.56632352,43480.0,43479.0,0.05]
[1633058006867,0.97650752,43480.0,43479.0,0.05]
[1633058007264,0.51632352,43480.0,43479.0,0.05]
[1633058007464,0.55532352,43480.0,43479.0,0.05]
[1633058008665,0.51632352,43480.0,43479.0,0.05]
[1633058009466,0.55532352,43480.0,43479.0,0.05]
[1633058010067,0.368729,43480.0,43479.0,0.05]
[1633058010270,0.38889872,43480.0,43479.0,0.05]
[1633058010670,0.34989872,43480.0,43479.0,0.05]
[1633058011469,0.37889872,43480.0,43479.0,0.06]
[1633058011868,0.14916972,43480.0,43479.0,0.06]
[1633058012671,0.14916972,43480.0,43479.0,0.05]
[1633058012873,0.12016972,43480.0,43479.0,0.05]
[1633058013470,0.15216972,43480.0,43479.0,0.064]
[1633058013870,0.38189872,43480.0,43479.0,0.064]
[1633058014671,0.38189872,43480.0,43479.0,0.05]
[1633058014871,0.34989872,43480.0,43479.0,0.05]
[1633058015477,0.28189872,43480.0,43479.0,0.064]
[1633058016874,0.24989872,43480.0,43479.0,0.05]
[1633058017279,0.34989872,43480.0,43479.0,0.05]
[1633058017475,0.38189872,43480.0,43479.0,0.064]
[1633058019377,0.34989872,43480.0,43479.0,0.05]
[1633058019577,0.34989872,43480.0,43479.0,0.063]
[1633058019578,0.38189872,43480.0,43479.0,0.063]
[1633058020782,0.34989872,43480.0,43479.0,0.05]
[1633058021582,0.16016972,43480.0,43479.0,0.05]
[1633058022377,0.38429586,43480.0,43479.0,0.05]
[1633058022777,0.34429586,43480.0,43479.0,0.05]
[1633058023577,0.38429586,43480.0,43479.0,0.05]
[1633058023785,0.38429586,43480.0,43479.0,0.06938005]
[1633058023980,0.38429586,43480.0,43479.0,0.05]
[1633058023981,0.16016972,43480.0,43479.0,0.05]
[1633058024181,0.16016972,43480.0,43479.0,0.049906]
[1633058025185,0.12016972,43480.0,43479.0,0.049906]
[1633058025580,0.16016972,43480.0,43479.0,0.049906]
[1633058025782,0.38989872,43480.0,43479.0,0.049906]
[1633058027384,0.34989872,43480.0,43479.0,0.049906]
[1633058027584,0.38989872,43480.0,43479.0,0.049906]
[1633058028785,0.34989872,43480.0,43479.0,0.049906]
[1633058029584,0.38889872,43480.0,43479.0,0.049906]
[1633058030185,0.15916972,43480.0,43479.0,0.049906]
[1633058030788,0.35109205,43480.0,43479.0,0.049906]
[1633058031587,0.39009205,43480.0,43479.0,0.049906]
[1633058032788,0.35109205,43480.0,43479.0,0.049906]
[1633058032989,0.329729,43480.0,43479.0,0.049906]
[1633058033589,0.367729,43480.0,43479.0,0.049906]
[1633058034793,0.329729,43480.0,43479.0,0.049906]
[1633058035591,0.368729,43480.0,43479.0,0.049906]
[1633058036194,0.23011805,43478.0,43475.0,0.23]
[1633058036399,0.345173,43477.0,43475.0,0.23]
[1633058036595,0.345173,43477.0,43476.0,0.0231]
[1633058036794,0.35584398,43477.0,43476.0,0.0231]
[1633058036995,0.58557298,43477.0,43476.0,0.0231]
[1633058037194,0.70622102,43477.0,43476.0,0.0231]
[1633058037594,0.73922102,43477.0,43476.0,0.0271]
[1633058038197,0.96056789,43477.0,43476.0,0.0271]
[1633058038402,0.96056789,43477.0,43476.0,0.004]
[1633058038602,0.97973799,43477.0,43476.0,0.004]
[1633058038803,0.97973799,43477.0,43475.0,0.23]
[1633058038804,0.95016088,43477.0,43475.0,0.23]
[1633058038999,0.35,43475.0,43474.0,0.87450491]
[1633058039197,0.48079866,43475.0,43474.0,0.87450491]
[1633058039396,0.92728092,43475.0,43474.0,0.87450491]
[1633058039598,0.92728092,43475.0,43474.0,0.41415245]
[1633058039796,0.95527215,43475.0,43474.0,0.41415245]
[1633058039998,0.72292376,43475.0,43474.0,0.41415245]
[1633058040202,0.69493253,43475.0,43474.0,0.41415245]
[1633058040396,0.46520353,43475.0,43474.0,0.41415245]
[1633058040858,0.62772349,43475.0,43474.0,0.41415245]
[1633058041257,0.85745249,43475.0,43474.0,0.41415245]
[1633058041658,0.89345249,43475.0,43474.0,0.41415245]
[1633058042857,0.85745249,43475.0,43474.0,0.41415245]
[1633058043667,0.89345249,43475.0,43474.0,0.41415245]
[1633058044867,0.85745249,43475.0,43474.0,0.41415245]
[1633058045669,0.89445249,43475.0,43474.0,0.41415245]
[1633058046871,0.85745249,43475.0,43474.0,0.41415245]
[1633058047468,2.51129548,43475.0,43474.0,0.41415245]
[1633058047670,2.79829548,43475.0,43474.0,0.41415245]
[1633058047872,2.76532809,43475.0,43474.0,0.43480717]
[1633058048071,2.76532809,43475.0,43474.0,0.41415245]
[1633058048271,2.75908215,43475.0,43474.0,0.41415245]
[1633058049674,2.75808215,43475.0,43474.0,0.41415245]
[1633058050275,2.80808215,43475.0,43474.0,0.41415245]
[1633058050876,2.77208215,43475.0,43474.0,0.41415245]
[1633058051678,2.80708215,43475.0,43474.0,0.41415245]
[1633058052878,2.77208215,43475.0,43474.0,0.41415245]
[1633058053678,2.80708215,43475.0,43474.0,0.41415245]
[1633058054879,2.77208215,43475.0,43474.0,0.41415245]
[1633058055681,2.80708215,43475.0,43474.0,0.41415245]
[1633058056479,2.99345068,43475.0,43474.0,0.41415245]
[1633058056879,2.95845068,43475.0,43474.0,0.41415245]
[1633058057679,2.99345068,43475.0,43474.0,0.41415245]
[1633058058882,2.95845068,43475.0,43474.0,0.41415245]
[1633058059682,2.99345068,43475.0,43474.0,0.41415245]
[1633058060882,2.95845068,43475.0,43474.0,0.41415245]
[1633058061682,2.99345068,43475.0,43474.0,0.41415245]
[1633058061887,3.03558068,43475.0,43474.0,0.41415245]
[1633058062883,3.00058068,43475.0,43474.0,0.41415245]
[1633058063682,3.03558068,43475.0,43474.0,0.41415245]
[1633058065286,3.05094566,43475.0,43474.0,0.41415245]
[1633058065488,3.01594566,43475.0,43474.0,0.41415245]
[1633058065687,3.05094566,43475.0,43474.0,0.41415245]
[1633058066086,3.00881566,43475.0,43474.0,0.41415245]
[1633058066885,2.97381566,43475.0,43474.0,0.41415245]
[1633058067688,3.00881566,43475.0,43474.0,0.41415245]
[1633058067886,2.99345068,43475.0,43474.0,0.41415245]
[1633058068089,2.80708215,43475.0,43474.0,0.41415245]
[1633058068889,2.77208215,43475.0,43474.0,0.41415245]
[1633058069489,2.00060195,43475.0,43474.0,0.41415245]
[1633058069688,2.03360195,43475.0,43474.0,0.41415245]
[1633058070092,2.26333095,43475.0,43474.0,0.41415245]
[1633058070891,2.23033095,43475.0,43474.0,0.41415245]
[1633058071094,2.38033095,43475.0,43474.0,0.41415245]
[1633058071690,2.41633095,43475.0,43474.0,0.41415245]
[1633058072895,2.38033095,43475.0,43474.0,0.41415245]
[1633058073693,2.41533095,43475.0,43474.0,0.41415245]
[1633058074494,2.66533095,43475.0,43474.0,0.41415245]
[1633058074894,2.63033095,43475.0,43474.0,0.41415245]
[1633058075693,2.66533095,43475.0,43474.0,0.41415245]
[1633058076897,2.63033095,43475.0,43474.0,0.41415245]
[1633058077698,2.66433095,43475.0,43474.0,0.41415245]
[1633058079564,2.63033095,43475.0,43474.0,0.41415245]
[1633058079702,2.66533095,43475.0,43474.0,0.41415245]
[1633058080906,2.63033095,43475.0,43474.0,0.41415245]
[1633058081705,2.66633095,43475.0,43474.0,0.41415245]
[1633058083107,2.63033095,43475.0,43474.0,0.41415245]
[1633058083705,2.66633095,43475.0,43474.0,0.41415245]
[1633058084307,2.66633095,43475.0,43474.0,0.40915245]
[1633058084910,2.63033095,43475.0,43474.0,0.40915245]
[1633058085711,2.66733095,43475.0,43474.0,0.40915245]
[1633058086515,2.67834788,43475.0,43474.0,0.40915245]
[1633058087113,2.64134788,43475.0,43474.0,0.40915245]
[1633058087715,2.67734788,43475.0,43474.0,0.40915245]
[1633058088718,2.66133095,43475.0,43474.0,0.40915245]
[1633058088917,2.62533095,43475.0,43474.0,0.40915245]
[1633058089119,2.64119924,43475.0,43474.0,0.40915245]
[1633058089716,2.67819924,43475.0,43474.0,0.40915245]
[1633058091122,2.80202924,43475.0,43474.0,0.40915245]
[1633058091720,2.83702924,43475.0,43474.0,0.40915245]
[1633058092820,2.67619924,43475.0,43474.0,0.40915245]
[1633058093022,2.64119924,43475.0,43474.0,0.40915245]
[1633058093418,2.62533095,43475.0,43474.0,0.40915245]
[1633058093820,2.66233095,43475.0,43474.0,0.40915245]
[1633058095019,2.62533095,43475.0,43474.0,0.40915245]
[1633058095821,2.66233095,43475.0,43474.0,0.40915245]
[1633058097027,2.62533095,43475.0,43474.0,0.40915245]
[1633058097626,2.69188519,43475.0,43474.0,0.40915245]
[1633058097824,2.72888519,43475.0,43474.0,0.40915245]
[1633058098024,2.66233095,43475.0,43474.0,0.40915245]
[1633058098226,2.72888396,43475.0,43474.0,0.40915245]
[1633058098626,2.66233095,43475.0,43474.0,0.40915245]
[1633058099027,2.62533095,43475.0,43474.0,0.40915245]
[1633058099832,2.66133095,43475.0,43474.0,0.40915245]
[1633058100228,2.72788473,43475.0,43474.0,0.40915245]
[1633058100690,2.66133095,43475.0,43474.0,0.40915245]
[1633058100985,2.62533095,43475.0,43474.0,0.40915245]
[1633058101784,2.66133095,43475.0,43474.0,0.40915245]
[1633058102985,2.62533095,43475.0,43474.0,0.40915245]
[1633058103385,2.6358935,43475.0,43474.0,0.40915245]
[1633058103797,2.6718935,43475.0,43474.0,0.40915245]
[1633058104598,2.4421645,43475.0,43474.0,0.40915245]
[1633058105000,2.4061645,43475.0,43474.0,0.40915245]
[1633058105800,2.4421645,43475.0,43474.0,0.40915245]
[1633058106802,2.44303778,43475.0,43474.0,0.40915245]
[1633058107206,2.40703778,43475.0,43474.0,0.40915245]
[1633058107604,2.63676678,43475.0,43474.0,0.40915245]
[1633058107804,2.67276678,43475.0,43474.0,0.40915245]
[1633058109007,2.63676678,43475.0,43474.0,0.40915245]
[1633058109209,2.6373755,43475.0,43474.0,0.40915245]
[1633058109807,2.6733755,43475.0,43474.0,0.40915245]
[1633058110609,2.73993356,43475.0,43474.0,0.40915245]
[1633058111010,2.70393356,43475.0,43474.0,0.40915245]
[1633058111409,2.6373755,43475.0,43474.0,0.40915245]
[1633058111813,2.6733755,43475.0,43474.0,0.40915245]
[1633058112812,2.73993441,43475.0,43474.0,0.40915245]
[1633058113212,2.70393441,43475.0,43474.0,0.40915245]
[1633058113818,2.6733755,43475.0,43474.0,0.40915245]
[1633058115216,2.6373755,43475.0,43474.0,0.40915245]
[1633058115818,2.6733755,43475.0,43474.0,0.40915245]
[1633058117024,2.6373755,43475.0,43474.0,0.40915245]
[1633058117820,2.6723755,43475.0,43474.0,0.40915245]
[1633058119826,2.6733755,43475.0,43474.0,0.40915245]
[1633058120226,2.67866027,43475.0,43474.0,0.40915245]
[1633058121226,2.64266027,43475.0,43474.0,0.40915245]
[1633058121627,2.70922094,43475.0,43474.0,0.40915245]
[1633058121827,2.74422094,43475.0,43474.0,0.40915245]
[1633058122027,2.67766027,43475.0,43474.0,0.40915245]
[1633058123227,2.64266027,43475.0,43474.0,0.40915245]
[1633058123834,2.67766027,43475.0,43474.0,0.40915245]
[1633058125231,2.64266027,43475.0,43474.0,0.40915245]
[1633058125829,2.66181295,43475.0,43474.0,0.40915245]
[1633058127230,2.69337363,43475.0,43474.0,0.40915245]
[1633058127830,2.72837363,43475.0,43474.0,0.40915245]
[1633058128431,2.72837363,43475.0,43474.0,0.15558954]
[1633058128633,2.76573189,43475.0,43474.0,0.15558954]
[1633058128833,3.05510189,43475.0,43474.0,0.15558954]
[1633058129231,3.07784349,43475.0,43474.0,0.15558954]
[1633058129430,2.83784349,43475.0,43474.0,0.15558954]
[1633058129833,2.87184349,43475.0,43474.0,0.15558954]
[1633058130431,2.82247349,43475.0,43474.0,0.15558954]
[1633058131090,2.78847349,43475.0,43474.0,0.15558954]
[1633058131894,2.82147349,43475.0,43474.0,0.15558954]
[1633058132291,2.76175745,43475.0,43474.0,0.15558954]
[1633058132494,2.40981295,43475.0,43474.0,0.15558954]
[1633058133090,2.42508705,43475.0,43474.0,0.15558954]
[1633058133293,2.39208705,43475.0,43474.0,0.15558954]
[1633058133894,2.42608705,43475.0,43474.0,0.15558954]
[1633058134295,2.66081295,43475.0,43474.0,0.15558954]
[1633058135095,2.62681295,43475.0,43474.0,0.15558954]
[1633058135299,2.39708395,43475.0,43474.0,0.15558954]
[1633058135497,0.74324096,43475.0,43474.0,0.63487859]
[1633058135704,0.74324096,43475.0,43474.0,0.6496802]
[1633058135705,0.00301196,43475.0,43474.0,0.6496802]
[1633058135899,0.04001196,43475.0,43474.0,0.65090043]
[1633058137098,0.00301196,43475.0,43474.0,0.65090043]
[1633058137900,0.02501196,43475.0,43474.0,0.67490043]
[1633058139103,0.02501196,43475.0,43474.0,0.65090043]
[1633058139298,0.00301196,43475.0,43474.0,0.65090043]
[1633058139903,0.02501196,43475.0,43474.0,0.6736802]
[1633058141304,0.00301196,43475.0,43474.0,0.6496802]
[1633058141904,0.00301196,43475.0,43474.0,0.6746802]
[1633058141905,0.02401196,43475.0,43474.0,0.6746802]
[1633058142707,0.0986035,43487.0,43475.0,0.04802391]
[1633058142908,1.65384299,43486.0,43482.0,0.00129039]
[1633058143109,1.65384299,43486.0,43482.0,0.02439039]
[1633058143307,0.1,43485.0,43482.0,0.02439039]
[1633058143506,1.65384299,43484.0,43483.0,0.01861393]
[1633058143911,0.05,43484.0,43483.0,0.01861393]
[1633058144109,1.70384299,43484.0,43483.0,0.01861393]
[1633058144308,1.65384299,43484.0,43482.0,0.03839039]
[1633058144508,1.65384299,43483.0,43482.0,0.03839039]
[1633058144708,0.345099,43484.0,43482.0,0.03839039]
[1633058144908,1.70384299,43483.0,43482.0,0.03839039]
[1633058145108,0.05,43483.0,43482.0,0.03839039]
[1633058145307,0.395099,43484.0,43482.0,0.00129039]
[1633058145507,1.65384299,43483.0,43482.0,0.00129039]
[1633058145908,1.65384299,43483.0,43482.0,0.01129039]
[1633058146111,1.65384299,43483.0,43482.0,0.05272211]
[1633058146309,1.65384299,43483.0,43482.0,0.30156923]
[1633058146508,0.076,43484.0,43482.0,0.30156923]
[1633058146709,0.026,43484.0,43483.0,0.26525127]
[1633058146912,0.026,43484.0,43483.0,0.78497905]
[1633058147112,0.026,43484.0,43483.0,0.89138506]
[1633058147310,0.23946397,43490.0,43483.0,0.89138506]
[1633058147509,0.23946397,43490.0,43489.0,0.00127243]
[1633058147709,0.23946397,43490.0,43489.0,0.02342801]
[1633058147910,0.24946397,43490.0,43489.0,0.27433258]
[1633058148311,0.24946397,43490.0,43489.0,0.252177]
[1633058148508,0.29946397,43490.0,43489.0,0.00127243]
[1633058148909,0.29946397,43490.0,43489.0,2.77729649]
[1633058149315,0.29099341,43490.0,43489.0,2.77729649]
[1633058149912,0.31499341,43490.0,43489.0,2.79329649]
[1633058151311,0.29099341,43490.0,43489.0,2.77729649]
[1633058151910,0.31499341,43490.0,43489.0,2.79729649]
[1633058152112,0.31499341,43490.0,43489.0,2.79782659]
[1633058152315,0.31499341,43490.0,43489.0,2.79729649]
[1633058153312,0.29099341,43490.0,43489.0,2.77729649]
[1633058154115,0.30999341,43490.0,43489.0,2.79829649]
[1633058155315,0.29099341,43490.0,43489.0,2.77729649]
[1633058156118,0.30999341,43490.0,43489.0,2.79829649]
[1633058157316,0.28599341,43490.0,43489.0,2.77729649]
[1633058158117,0.30499341,43490.0,43489.0,2.79829649]
[1633058158921,0.25846397,43490.0,43489.0,2.82139649]
[1633058159323,0.25846397,43490.0,43489.0,3.04512659]
[1633058159520,0.23946397,43490.0,43489.0,3.02412659]
[1633058160123,0.25446397,43490.0,43489.0,3.05412659]
[1633058160321,0.25446397,43490.0,43489.0,3.42067461]
[1633058160521,0.25446397,43490.0,43489.0,3.52067461]
[1633058161324,0.23946397,43490.0,43489.0,3.49067461]
[1633058162121,0.23946397,43490.0,43489.0,3.52667461]
[1633058162326,0.0004,43504.0,43496.0,0.229922]
[1633058162525,0.0004,43504.0,43503.0,0.00128582]
[1633058162724,0.0004,43504.0,43503.0,0.14362759]
[1633058163722,0.0004,43504.0,43503.0,0.13836569]
[1633058164123,0.0004,43504.0,43503.0,0.15136569]
[1633058165322,0.0004,43504.0,43503.0,0.13836569]
[1633058166126,0.0004,43504.0,43503.0,0.15236569]
[1633058167526,0.0004,43504.0,43503.0,0.13836569]
[1633058167724,0.0004,43504.0,43503.0,0.00128582]
[1633058168124,0.0004,43504.0,43503.0,0.01528582]
[1633058168325,0.0004,43504.0,43503.0,0.22012756]
[1633058168725,0.0004,43504.0,43503.0,0.01528582]
[1633058169327,0.0004,43504.0,43503.0,0.00128582]
[1633058169929,0.0004,43504.0,43503.0,0.00181592]
[1633058170129,0.0004,43504.0,43503.0,0.22434078]
[1633058170929,0.0004,43504.0,43503.0,0.22381068]
[1633058171530,0.0004,43504.0,43503.0,0.21081068]
[1633058171929,0.0004,43504.0,43503.0,0.00128582]
[1633058172130,0.0004,43504.0,43503.0,0.02628582]
[1633058172929,0.0004,43504.0,43503.0,0.25523731]
[1633058173328,0.0004,43504.0,43503.0,0.23023731]
[1633058174130,0.0004,43504.0,43503.0,0.25523731]
[1633058175132,0.00192896,43504.0,43503.0,0.25523731]
[1633058175332,0.00192896,43504.0,43503.0,0.23023731]
[1633058175732,0.00192896,43504.0,43503.0,0.25386741]
[1633058175935,0.00192896,43504.0,43503.0,0.39452741]
[1633058176133,0.00192896,43504.0,43503.0,0.41952741]
[1633058177334,0.00192896,43504.0,43503.0,0.39452741]
[1633058178134,0.00192896,43504.0,43503.0,0.42252741]
[1633058178616,0.0004,43505.0,43504.0,1.15]
[1633058178737,0.0004,43505.0,43504.0,1.75638]
[1633058178937,0.038375,43509.0,43506.0,1.15]
[1633058179141,0.038375,43509.0,43508.0,1.70898234]
[1633058179336,0.038375,43509.0,43508.0,1.97261244]
[1633058179538,0.038375,43509.0,43508.0,2.18261244]
[1633058179735,0.038375,43509.0,43508.0,1.25581244]
[1633058180133,0.01737069,43516.0,43509.0,1.22675]
[1633058180337,0.01737069,43516.0,43509.0,1.2543219]
[1633058180535,0.01737069,43516.0,43509.0,1.854852]
[1633058180734,0.01737069,43516.0,43509.0,2.655052]
[1633058180735,0.0006,43510.0,43509.0,2.655052]
[1633058180936,0.0006,43510.0,43509.0,2.765052]
[1633058181535,0.00066584,43510.0,43509.0,2.765052]
[1633058182137,0.00066584,43510.0,43509.0,2.803052]
[1633058182340,6.584e-05,43511.0,43510.0,1.15120719]
[1633058182538,0.01737069,43516.0,43512.0,1.15]
[1633058182737,0.01737069,43516.0,43514.0,1.15517499]
[1633058182934,0.01737069,43516.0,43514.0,1.56859926]
[1633058183135,0.01737069,43516.0,43514.0,1.56912936]
[1633058183336,0.0008,43522.0,43517.0,1.11819224]
[1633058183535,0.0008,43522.0,43517.0,1.74534421]
[1633058183735,0.0008,43522.0,43517.0,1.96907431]
[1633058184138,0.0008,43522.0,43517.0,2.00707431]
[1633058184536,0.0008,43522.0,43517.0,0.90707431]
[1633058184738,0.0008,43522.0,43517.0,1.13635901]
[1633058185539,0.0008,43522.0,43517.0,1.09835901]
[1633058186137,0.0008,43522.0,43517.0,0.90707431]
[1633058186338,0.0008,43522.0,43517.0,1.12941146]
[1633058187603,0.0008,43522.0,43517.0,0.86907431]
[1633058187742,0.0008,43522.0,43517.0,0.86854421]
[1633058188141,0.0008,43522.0,43517.0,0.90607431]
[1633058189142,0.0008,43522.0,43517.0,1.12788822]
[1633058189341,0.0008,43522.0,43517.0,1.12735812]
[1633058189544,0.0008,43522.0,43517.0,0.86854421]
[1633058190142,0.0008,43522.0,43517.0,0.90707431]
[1633058190343,0.0008,43522.0,43517.0,0.90654421]
[1633058190602,0.0006,43524.0,43517.0,0.90654421]
[1633058190746,0.04003432,43529.0,43523.0,0.24579763]
[1633058190944,0.04003432,43529.0,43524.0,0.0231]
[1633058191146,0.04003432,43529.0,43525.0,0.02642169]
[1633058191345,0.04003432,43529.0,43526.0,0.0231]
[1633058191744,0.04003432,43529.0,43528.0,0.08507476]
[1633058191944,0.04003432,43529.0,43528.0,0.0477189]
[1633058192145,0.04011514,43529.0,43528.0,0.0231]
[1633058192345,0.04019596,43529.0,43528.0,0.0231]
[1633058192745,0.04019596,43529.0,43526.0,0.022]
[1633058193346,0.38492396,43529.0,43527.0,0.01985434]
[1633058193608,0.38492396,43529.0,43524.0,0.0231]
[1633058194144,0.38492396,43529.0,43524.0,0.0481]
[1633058195343,0.38492396,43529.0,43525.0,0.01993403]
[1633058195549,0.38492396,43529.0,43524.0,0.0481]
[1633058195944,0.38492396,43529.0,43524.0,0.0231]
[1633058196545,0.38492396,43529.0,43524.0,0.0481]
[1633058196746,0.04019596,43529.0,43524.0,0.0481]
[1633058197549,0.04019596,43529.0,43524.0,0.0231]
[1633058198147,0.1371014,43529.0,43524.0,0.0441]
[1633058198349,0.5318264,43529.0,43524.0,0.0441]
[1633058198549,0.43492096,43529.0,43524.0,0.0441]
[1633058198748,0.09019596,43529.0,43524.0,0.0441]
[1633058198948,0.04019596,43529.0,43524.0,0.0441]
[1633058199619,0.04019596,43529.0,43526.0,0.00122264]
[1633058199752,0.04019596,43529.0,43527.0,0.02615241]
[1633058201549,0.04019596,43529.0,43522.0,0.13554649]
[1633058201749,0.04019596,43529.0,43523.0,0.02007144]
[1633058202757,0.04011514,43529.0,43523.0,0.02007144]
[1633058204153,0.04011514,43529.0,43523.0,0.04507144]
[1633058204354,0.04011514,43529.0,43524.0,0.02358103]
[1633058205757,0.38484414,43529.0,43524.0,0.02358103]
[1633058205956,0.43484414,43529.0,43524.0,0.02358103]
[1633058206157,0.43484414,43529.0,43524.0,0.04758103]
[1633058206359,0.43484414,43529.0,43524.0,0.024]
[1633058206558,0.09011514,43529.0,43524.0,0.024]
[1633058206957,0.04011514,43529.0,43525.0,0.020228]
[1633058208160,0.04011514,43529.0,43525.0,0.042228]
[1633058208359,0.04011514,43529.0,43526.0,0.020753]